bitfinex-derivatives/quotes_ETHF0:USTF0_20250902
["timestamp","ask_amount","ask_price","bid_price","bid_amount"]
[1756847150298,3.2078,4321.5,4320.8,0.4151]
[1756847150492,3.4115,4321.5,4321.4,0.7131]
[1756847150693,3.9379,4321.5,4321.4,0.7131]
[1756847150996,3.5337,4322.0,4321.4,0.6231]
[1756847151196,0.3259,4322.6,4321.9,0.298]
[1756847151405,0.7301,4322.6,4322.5,0.2078]
[1756847151704,0.7301,4322.6,4322.2,0.533]
[1756847151896,0.3259,4322.5,4322.2,0.533]
[1756847152199,0.7301,4322.3,4322.2,0.7408]
[1756847152400,0.7301,4322.3,4322.2,0.9481]
[1756847153192,0.4042,4322.3,4321.8,0.298]
[1756847153397,0.7301,4321.9,4321.8,0.235]
[1756847153596,0.7301,4321.9,4321.5,0.298]
[1756847153597,0.7301,4321.9,4321.5,0.533]
[1756847153802,0.7301,4321.9,4321.6,0.298]
[1756847154300,0.7301,4321.9,4321.5,0.235]
[1756847154502,0.3259,4321.8,4321.6,0.298]
[1756847154799,0.4042,4321.8,4321.5,0.235]
[1756847155000,3.2078,4322.2,4321.5,0.235]
[1756847155001,0.7301,4321.6,4321.5,0.7408]
[1756847155199,0.7301,4321.6,4321.5,0.9481]
[1756847155593,0.3259,4321.5,4321.4,0.235]
[1756847155800,0.7301,4321.5,4321.4,0.235]
[1756847156703,0.7301,4321.5,4321.4,0.4428]
[1756847157203,0.7301,4321.5,4321.4,0.7408]
[1756847157503,0.7301,4321.5,4321.4,0.5058]
[1756847157706,0.4042,4321.3,4321.2,0.235]
[1756847157890,0.4042,4321.3,4321.2,0.4428]
[1756847157891,0.7301,4321.3,4321.2,0.4428]
[1756847158094,0.7301,4321.3,4321.2,0.7408]
[1756847158796,0.7301,4321.3,4321.2,0.5058]
[1756847160200,3.2078,4321.6,4321.2,0.7131]
[1756847160403,3.9379,4321.6,4321.5,0.4151]
[1756847160603,3.9379,4321.6,4321.5,0.7131]
[1756847160799,3.612,4321.6,4320.7,0.298]
[1756847161103,0.7301,4321.3,4321.2,0.4428]
[1756847161492,0.7301,4321.3,4321.2,0.5058]
[1756847164004,0.3259,4321.2,4320.6,3.2078]
[1756847164199,0.3259,4320.7,4320.1,0.298]
[1756847164400,0.7301,4320.2,4320.1,0.5058]
[1756847165394,0.7301,4320.2,4320.1,0.7131]
[1756847165594,0.7301,4320.2,4319.7,3.2078]
[1756847165595,3.2078,4320.6,4320.4,0.4151]
[1756847165905,3.4115,4320.6,4320.5,0.7131]
[1756847167006,3.9379,4320.6,4320.5,0.7131]
[1756847167500,0.4042,4320.4,4320.3,0.7408]
[1756847167806,0.7301,4320.4,4320.3,0.7408]
[1756847168101,0.2037,4320.4,4320.3,0.9481]
[1756847168302,0.3259,4320.8,4320.4,0.298]
[1756847168498,0.7301,4320.8,4320.7,0.4151]
[1756847168699,0.7301,4320.8,4320.7,0.7131]
[1756847170004,0.7301,4320.8,4320.7,0.5058]
[1756847171901,0.7301,4320.8,4320.7,0.7046]
[1756847173408,3.5176,4321.2,4320.7,0.7046]
[1756847173707,3.5176,4321.2,4320.3,0.235]
[1756847173708,3.2078,4321.2,4321.1,0.4024]
[1756847173911,3.2078,4321.2,4321.1,0.7098]
[1756847174102,3.4188,4321.2,4321.1,0.7098]
[1756847175507,3.9448,4321.2,4321.1,0.7098]
[1756847176102,3.635,4321.2,4321.1,0.7098]
[1756847176300,3.9448,4321.2,4321.1,0.7098]
[1756847177005,3.635,4321.2,4321.1,0.7098]
[1756847177204,3.4188,4321.2,4321.1,0.7098]
[1756847177511,3.2078,4321.2,4321.1,4.94122]
[1756847177815,3.2078,4322.0,4321.9,0.7098]
[1756847178507,3.2078,4322.0,4321.9,0.89000319]
[1756847179309,3.3313,4323.0,4321.9,3.79040319]
[1756847179512,1.35215942,4322.9,4322.0,0.3074]
[1756847179706,0.737,4322.7,4322.6,0.2036]
[1756847179904,0.737,4322.7,4322.6,0.511]
[1756847180409,0.737,4322.7,4322.6,0.2036]
[1756847181205,0.737,4322.7,4322.6,0.511]
[1756847181612,0.737,4322.7,4322.6,0.2036]
[1756847181814,0.737,4322.7,4321.8,0.235]
[1756847182015,0.737,4322.7,4321.9,0.3074]
[1756847182217,0.737,4322.7,4322.0,0.235]
[1756847185817,0.737,4322.7,4322.1,0.3074]
[1756847186213,0.4272,4322.0,4321.9,0.235]
[1756847186415,0.737,4322.0,4321.9,0.235]
[1756847186610,0.737,4322.0,4321.9,0.5424]
[1756847186918,0.737,4322.0,4321.9,0.746]
[1756847187510,0.737,4322.0,4320.4,30.557]
[1756847187511,0.3098,4321.9,4320.9,3.2078]
[1756847187717,0.737,4321.1,4321.0,0.7098]
[1756847188615,3.2078,4322.4,4321.1,0.3074]
[1756847188616,0.3098,4321.5,4321.1,0.3074]
[1756847188818,0.5208,4321.5,4321.4,0.4024]
[1756847189119,0.5208,4321.5,4321.4,0.7098]
[1756847189317,0.737,4321.5,4321.4,0.7098]
[1756847193612,0.737,4321.5,4321.4,0.511]
[1756847193920,0.4272,4321.3,4321.2,0.746]
[1756847194117,0.737,4321.3,4321.2,0.746]
[1756847194317,0.737,4321.3,4321.2,0.9448]
[1756847196527,0.4272,4322.4,4322.3,0.511]
[1756847196822,0.4272,4322.4,4322.2,0.3074]
[1756847197124,0.737,4322.3,4322.2,0.3074]
[1756847197417,0.737,4322.3,4322.2,0.7098]
[1756847197613,0.211,4322.3,4322.2,0.7098]
[1756847199021,0.737,4322.3,4322.2,0.7098]
[1756847205023,0.3107,4322.8,4322.3,0.297]
[1756847205227,0.402,4322.8,4322.7,0.2051]
[1756847205423,0.7127,4322.8,4322.7,0.5021]
[1756847206326,0.7127,4322.8,4322.7,0.2051]
[1756847206516,0.7127,4322.8,4322.2,0.297]
[1756847206929,0.7127,4322.8,4322.3,0.235]
[1756847207122,0.402,4322.8,4322.3,0.235]
[1756847207321,0.7127,4322.7,4322.6,0.7031]
[1756847208932,0.402,4322.7,4322.6,0.7031]
[1756847210032,0.7127,4322.7,4322.6,0.7031]
[1756847213440,0.2068,4322.7,4322.6,0.7031]
[1756847215335,0.5175,4322.7,4322.6,0.7031]
[1756847216532,0.7127,4322.7,4322.6,0.7031]
[1756847220241,0.2068,4322.7,4322.6,0.7031]
[1756847220629,0.5175,4322.7,4322.6,0.7031]
[1756847221135,0.2068,4322.7,4322.6,0.7031]
[1756847221840,3.2078,4322.9,4322.6,0.4061]
[1756847222038,3.2078,4322.9,4322.8,0.4061]
[1756847222340,3.2078,4322.9,4322.8,0.7031]
[1756847222936,3.4146,4322.9,4322.8,0.7031]
[1756847223135,0.2318,4326.5,4323.7,0.4061]
[1756847223136,3.2078,4324.1,4323.7,0.4061]
[1756847223337,3.2078,4324.1,4323.0,0.1212]
[1756847223338,3.9205,4324.1,4324.0,0.7031]
[1756847224047,0.3107,4325.0,4324.1,0.297]
[1756847224337,3.2078,4325.1,4324.2,0.4401]
[1756847224338,0.7127,4324.3,4324.2,0.4401]
[1756847224839,0.7127,4324.3,4324.2,0.7381]
[1756847225051,0.7127,4324.3,4324.2,0.9391]
[1756847229549,0.7127,4324.3,4324.2,0.7371]
[1756847229846,0.7127,4324.3,4324.2,0.9381]
[1756847230746,0.7127,4324.3,4324.2,0.7031]
[1756847231145,0.7127,4324.3,4324.2,0.9381]
[1756847232246,0.402,4324.3,4324.2,0.9381]
[1756847232443,0.2011,4324.6,4324.5,0.4022]
[1756847232644,0.2011,4324.6,4324.5,0.7082]
[1756847232844,0.2915,4324.9,4324.6,0.306]
[1756847233048,0.6879,4324.9,4324.8,0.7082]
[1756847233248,3.2078,4325.1,4324.8,0.4022]
[1756847233445,0.2011,4325.0,4324.9,0.7082]
[1756847233947,0.3964,4325.0,4324.6,0.235]
[1756847234150,3.2078,4325.1,4324.6,0.9432]
[1756847234460,0.2011,4324.8,4324.7,0.7082]
[1756847234946,0.3964,4324.8,4324.7,0.7082]
[1756847235145,0.6879,4324.8,4324.7,0.7082]
[1756847235854,0.2011,4324.8,4324.7,0.7082]
[1756847236145,0.3964,4324.8,4324.7,0.9432]
[1756847236339,0.6879,4324.8,4324.7,0.9432]
[1756847236539,3.2078,4325.1,4324.8,0.306]
[1756847236852,3.2078,4325.1,4325.0,0.7082]
[1756847237051,3.4089,4325.1,4325.0,0.7082]
[1756847237348,3.2078,4325.1,4325.0,0.7082]
[1756847237649,3.8957,4325.1,4325.0,0.9432]
[1756847238047,3.8957,4325.1,4325.0,0.541]
[1756847238249,3.8957,4325.1,4325.0,0.9432]
[1756847239646,0.6879,4325.1,4325.0,0.9432]
[1756847240942,0.6879,4325.0,4324.9,0.235]
[1756847242051,0.2915,4325.4,4324.9,0.9432]
[1756847242351,3.2078,4325.8,4325.5,0.5119]
[1756847242352,0.6879,4325.6,4325.5,0.5119]
[1756847242852,0.3964,4325.6,4325.0,0.306]
[1756847243056,0.3964,4325.1,4325.0,0.2059]
[1756847243356,0.6879,4325.1,4325.0,0.7082]
[1756847243558,0.3964,4325.1,4325.0,0.7082]
[1756847244260,0.2915,4325.4,4325.1,0.306]
[1756847244553,0.4926,4325.4,4325.3,0.7082]
[1756847244957,0.6879,4325.4,4325.3,0.7082]
[1756847246653,0.2915,4325.7,4325.4,0.306]
[1756847246857,0.6879,4325.7,4325.6,0.7082]
[1756847247453,0.6879,4325.7,4325.6,0.5119]
[1756847248265,0.3964,4325.4,4325.3,0.235]
[1756847248457,0.6879,4325.4,4325.3,0.235]
[1756847250661,0.2915,4325.3,4325.0,0.306]
[1756847250865,0.2915,4324.9,4324.6,0.235]
[1756847251162,0.3964,4324.8,4324.7,0.7469]
[1756847251362,0.6879,4324.8,4324.7,0.5119]
[1756847251560,0.6879,4324.8,4324.7,0.7469]
[1756847251762,0.6879,4324.8,4324.7,0.5119]
[1756847251963,0.2915,4324.7,4324.0,0.306]
[1756847252166,0.2011,4324.1,4324.0,0.7082]
[1756847252363,0.2011,4324.1,4324.0,41.7432]
[1756847252966,0.2011,4324.1,4324.0,0.9432]
[1756847254560,3.2078,4325.3,4324.7,0.306]
[1756847254769,0.6879,4324.8,4324.7,0.7082]
[1756847254962,0.6879,4324.8,4324.7,0.9432]
[1756847255362,0.6879,4324.8,4324.7,0.7082]
[1756847257465,0.6879,4324.8,4324.7,0.5119]
[1756847257665,0.6879,4324.7,4324.6,0.235]
[1756847258669,0.6879,4324.7,4324.4,0.306]
[1756847258870,0.2915,4324.6,4324.5,0.5119]
[1756847259070,0.6879,4324.6,4324.5,0.5119]
[1756847259264,0.6879,4324.6,4324.5,0.7082]
[1756847260071,0.2915,4324.5,4324.1,40.8]
[1756847260372,0.4926,4324.2,4324.1,40.8]
[1756847260565,0.2011,4324.2,4324.1,0.6372]
[1756847260772,0.2011,4324.2,4324.1,0.9432]
[1756847263867,3.2078,4325.3,4324.1,0.6372]
[1756847264171,3.4115,4325.3,4325.2,0.7284]
[1756847264470,3.9267,4325.3,4325.2,0.9644]
[1756847267866,0.7189,4325.3,4325.2,0.9644]
[1756847269474,0.5242,4325.3,4325.2,0.9644]
[1756847269674,0.2037,4325.4,4325.3,0.7284]
[1756847270874,0.5242,4325.4,4325.3,0.7284]
[1756847272568,0.7189,4325.4,4325.3,0.7284]
[1756847273572,0.7189,4325.4,4325.3,0.5146]
[1756847273875,0.3984,4324.9,4324.8,0.6568]
[1756847274070,0.7189,4324.9,4324.8,0.4208]
[1756847274377,0.7189,4324.9,4324.8,0.207]
[1756847274672,0.7189,4324.9,4324.6,0.5436]
[1756847274869,0.3205,4324.8,4324.6,0.3076]
[1756847275069,0.7189,4324.7,4324.6,0.5146]
[1756847278985,0.7189,4324.7,4324.4,0.3076]
[1756847279186,0.3984,4324.2,4324.1,0.443]
[1756847279386,0.3984,4324.2,4324.1,0.9644]
[1756847279387,0.7189,4324.2,4324.1,0.9644]
[1756847279793,0.7189,4324.2,4324.1,0.7284]
[1756847279986,0.3984,4324.2,4324.1,0.7284]
[1756847281393,0.3205,4324.7,4324.2,0.3076]
[1756847281587,0.7189,4324.7,4324.6,0.207]
[1756847282398,0.7189,4324.7,4324.6,0.5146]
[1756847282892,0.7189,4324.7,4324.1,0.3076]
[1756847284997,0.7189,4324.7,4324.6,0.5146]
[1756847285883,0.3984,4323.9,4323.8,0.5146]
[1756847286095,0.7189,4323.9,4323.8,0.5146]
[1756847286296,0.7189,4323.9,4323.8,0.7284]
[1756847290485,3.2078,4324.8,4323.8,0.4208]
[1756847290692,3.2078,4324.8,4324.0,0.1185]
[1756847290996,3.6062,4325.3,4325.2,0.207]
[1756847291191,3.9267,4325.3,4325.2,0.7422]
[1756847294392,3.9267,4325.3,4325.2,0.5284]
[1756847294587,0.4041,4324.7,4324.6,0.5236]
[1756847294891,0.6962,4324.7,4324.6,0.7586]
[1756847295307,0.2005,4324.7,4324.6,0.9545]
[1756847295493,0.2921,4325.1,4324.6,0.9545]
[1756847295694,0.2005,4324.8,4324.7,0.7195]
[1756847296101,0.6962,4324.8,4324.7,0.7195]
[1756847297697,0.2921,4324.7,4323.9,0.3214]
[1756847297900,0.2921,4324.7,4324.1,0.3214]
[1756847298100,0.6962,4324.7,4324.6,0.5236]
[1756847298502,0.6962,4324.7,4324.6,0.7195]
[1756847298798,3.4083,4325.3,4325.2,0.2022]
[1756847298997,4.1352,4325.3,4325.2,0.5236]
[1756847299394,3.904,4325.3,4325.2,0.5236]
[1756847300193,0.6962,4325.3,4325.2,0.5236]
[1756847300399,0.6962,4325.3,4323.8,2.05983857]
[1756847300400,4.4041,4325.3,4323.8,2.05983857]
[1756847300702,3.2078,4323.9,4322.1,0.2022]
[1756847301002,3.2078,4322.8,4322.7,0.7195]
[1756847301200,31.10603711,4323.8,4322.7,0.7195]
[1756847301201,0.238,4323.3,4322.8,0.3214]
[1756847301400,0.238,4323.3,4323.2,0.5236]
[1756847301595,0.43987472,4323.3,4323.2,0.5236]
[1756847301797,4.43987472,4323.3,4322.1,0.3214]
[1756847301997,3.2078,4322.9,4322.1,0.3214]
[1756847302202,0.20187472,4322.8,4322.1,0.3214]
[1756847302798,0.20187472,4322.8,4322.1,0.5236]
[1756847302999,0.20187472,4322.8,4322.2,0.3214]
[1756847303195,0.20187472,4322.8,4322.1,0.5236]
[1756847303398,0.20187472,4322.8,4322.0,0.1173]
[1756847303399,0.20187472,4322.8,4322.2,0.5236]
[1756847303910,3.2078,4322.3,4320.2,0.5236]
[1756847304098,3.2078,4320.3,4320.2,0.7195]
[1756847304507,3.40910671,4320.3,4319.6,0.3214]
[1756847304706,3.2078,4319.7,4319.6,0.3214]
[1756847305001,3.40910671,4319.7,4319.1,0.5236]
[1756847305207,3.2078,4319.2,4319.1,0.3214]
[1756847307406,3.2078,4319.2,4318.1,3.2078]
[1756847307602,3.2078,4317.8,4316.1,0.3214]
[1756847307804,3.2078,4316.2,4316.1,0.3214]
[1756847309103,3.2078,4316.2,4315.6,0.3214]
[1756847309314,3.2078,4315.7,4315.6,0.3214]
[1756847311999,3.2078,4315.7,4315.6,4.3214]
[1756847313907,3.2078,4316.2,4316.1,0.3214]
[1756847314119,2.563,4316.2,4316.1,0.5634]
[1756847314609,2.563,4316.2,4316.1,41.3634]
[1756847314806,2.563,4316.2,4316.1,45.3634]
[1756847315008,0.2921,4317.1,4316.2,0.3214]
[1756847315214,0.242,4317.5,4316.1,41.042]
[1756847315215,3.4999,4316.6,4316.1,41.042]
[1756847315508,0.2921,4316.5,4316.2,0.3214]
[1756847315709,3.2078,4316.6,4316.0,0.3214]
[1756847316010,0.2921,4316.5,4315.6,0.3214]
[1756847316215,0.2921,4316.5,4315.8,0.243]
[1756847316609,0.2921,4316.0,4315.8,0.5644]
[1756847316815,3.2078,4316.1,4315.9,0.3214]
[1756847317009,3.2078,4316.1,4315.8,0.243]
[1756847317409,3.2078,4316.1,4315.9,0.3214]
[1756847317610,3.2078,4316.1,4315.6,40.8]
[1756847317811,3.2078,4316.1,4316.0,0.5644]
[1756847318211,3.2078,4316.1,4316.0,4.5644]
[1756847318419,0.2921,4316.6,4316.1,0.3214]
[1756847318420,3.2078,4316.6,4316.1,0.3214]
[1756847320422,3.4999,4316.6,4316.2,0.3214]
[1756847320618,3.4999,4316.6,4316.1,0.3214]
[1756847320817,3.4999,4316.6,4316.0,0.3603]
[1756847321019,3.4999,4316.6,4316.1,0.3214]
[1756847321222,3.7004,4316.6,4316.5,0.4079]
[1756847321521,3.7004,4316.6,4316.5,0.9737]
[1756847321721,3.9258,4316.6,4316.5,0.9737]
[1756847321921,3.9258,4316.6,4316.5,0.4452]
[1756847322116,3.9258,4316.6,4316.1,0.3228]
[1756847322315,0.3222,4316.5,4316.2,0.242]
[1756847322515,0.7514,4316.3,4316.2,0.2064]
[1756847322715,0.7514,4316.3,4316.2,0.4484]
[1756847322916,0.7514,4316.3,4315.6,40.8]
[1756847323117,0.526,4315.7,4315.6,41.1228]
[1756847323313,0.2038,4315.7,4315.3,0.3228]
[1756847323526,0.3222,4316.0,4315.3,0.3228]
[1756847323824,0.3222,4316.0,4315.4,0.242]
[1756847324119,0.1158,4315.9,4315.4,0.5648]
[1756847324326,0.3222,4315.8,4315.4,0.5648]
[1756847324525,0.3222,4315.8,4315.5,0.3228]
[1756847325224,0.1158,4315.9,4315.4,0.242]
[1756847325819,0.1158,4315.9,4315.5,0.3228]
[1756847326023,0.3222,4315.8,4315.5,0.3228]
[1756847326226,0.2038,4315.6,4315.5,0.5292]
[1756847326431,0.2038,4315.6,4315.5,0.7349]
[1756847326619,0.1158,4315.9,4315.5,0.4121]
[1756847326819,0.2038,4315.7,4315.6,0.7349]
[1756847327225,0.526,4315.7,4315.6,0.7349]
[1756847327723,0.7514,4315.7,4315.6,0.7349]
[1756847331232,1.37993805,4315.7,4315.6,0.7349]
[1756847331434,1.05773599,4315.7,4315.6,0.7349]
[1756847332830,0.62853599,4315.7,4315.6,1.15195]
[1756847333228,0.83631298,4315.7,4315.6,1.15195]
[1756847335042,0.62853599,4315.7,4315.6,1.15195]
[1756847335241,0.82799984,4315.7,4315.6,1.15195]
[1756847337832,3.99061775,4316.1,4316.0,0.41702]
[1756847338036,1.24601775,4316.5,4316.4,0.7349]
[1756847338232,3.2078,4316.6,4316.5,0.73977]
[1756847338538,3.4116,4316.6,4316.5,1.44555395]
[1756847339746,3.2078,4316.6,4316.5,1.44555395]
[1756847339948,3.4116,4316.6,4316.5,1.44555395]
[1756847340647,0.2038,4316.6,4316.5,42.24555395]
[1756847341543,0.526,4316.9,4316.8,0.7349]
[1756847341743,0.7514,4316.9,4316.8,1.26958395]
[1756847341947,0.7514,4316.9,4316.8,1.68652395]
[1756847342749,0.7514,4316.9,4316.8,1.26958395]
[1756847344048,0.7514,4316.9,4316.8,0.53468395]
[1756847345541,0.7514,4316.9,4316.8,0.29368395]
[1756847345743,4.7514,4316.9,4316.6,5.335]
[1756847346045,0.3602,4315.8,4315.7,0.5292]
[1756847346247,0.3602,4315.8,4315.0,0.1216]
[1756847346248,0.4727,4315.6,4315.0,0.1216]
[1756847346455,0.3602,4315.2,4315.1,1.4638]
[1756847346748,0.3602,4315.2,4315.1,1.6702]
[1756847346949,0.3602,4315.2,4315.1,1.141]
[1756847346950,0.4727,4315.2,4315.1,1.141]
[1756847347742,0.4727,4315.2,4315.1,0.9]
[1756847347950,4.4727,4315.2,4315.1,0.9]
[1756847348146,4.4727,4315.2,4315.1,0.6745]
[1756847348952,4.3602,4315.2,4314.5,0.241]
[1756847349152,3.2078,4314.6,4314.5,0.5638]
[1756847349844,3.2078,4314.6,4314.5,0.4358]
[1756847350044,3.97178053,4314.6,4314.5,0.113]
[1756847351351,4.00988053,4314.6,4314.5,0.113]
[1756847352652,4.00078053,4314.6,4313.8,0.3232]
[1756847352846,3.2078,4313.9,4313.8,0.5389]
[1756847353046,3.39828851,4313.9,4313.8,0.5389]
[1756847353251,3.2078,4313.9,4313.8,0.5389]
[1756847354350,3.2078,4313.9,4313.8,0.7605]
[1756847358658,3.3232,4314.4,4313.8,4.7605]
[1756847358857,3.2078,4314.9,4314.5,0.1364]
[1756847359057,3.2078,4315.5,4314.9,0.3232]
[1756847359255,3.2078,4315.5,4315.4,0.5389]
[1756847359457,3.2078,4315.5,4315.4,0.7605]
[1756847359853,3.2078,4315.5,4315.4,1.0005]
[1756847360466,3.2078,4315.5,4315.4,5.0005]
[1756847361865,3.2078,4316.4,4316.3,0.7605]
[1756847362064,3.2078,4316.4,4316.3,1.0005]
[1756847363468,3.2078,4316.4,4316.3,1.18455551]
[1756847366164,3.2078,4317.0,4316.3,1.18455551]
[1756847366369,3.2078,4317.0,4316.4,0.3232]
[1756847366569,3.2078,4317.0,4316.5,0.3521]
[1756847366869,3.2078,4317.0,4316.6,0.2157]
[1756847367070,3.2078,4317.0,4316.8,0.3232]
[1756847367571,3.2078,4317.0,4316.9,0.3232]
[1756847367972,3.2078,4317.0,4316.9,0.5389]
[1756847368271,3.2078,4317.0,4316.9,0.3232]
[1756847370776,3.2078,4317.0,4316.9,0.5389]
[1756847371674,3.2078,4317.0,4316.9,0.7605]
[1756847374374,3.2078,4317.0,4316.9,1.17743]
[1756847374571,3.2078,4317.5,4317.4,0.7605]
[1756847374776,3.2078,4317.5,4317.4,1.0005]
[1756847375174,3.2078,4317.5,4317.4,41.8005]
[1756847375766,3.2078,4317.5,4317.4,40.8]
[1756847375979,3.2078,4317.5,4316.9,0.5389]
[1756847376372,3.2078,4317.5,4316.3,0.18405551]
[1756847376576,30.595,4318.7,4316.3,0.3232]
[1756847376577,3.2078,4316.5,4316.3,0.3232]
[1756847376778,3.2078,4316.5,4316.1,0.3232]
[1756847376980,3.2078,4316.5,4316.1,0.2157]
[1756847377176,3.2078,4316.5,4316.1,0.5389]
[1756847377378,3.2078,4316.5,4316.2,0.2157]
[1756847377576,3.2078,4316.5,4316.0,41.3574241]
[1756847377776,3.2078,4316.5,4316.1,0.2157]
[1756847377981,3.2078,4316.5,4316.2,0.2157]
[1756847378177,3.2078,4316.5,4316.1,0.3232]
[1756847378376,3.2078,4316.5,4316.2,0.2157]
[1756847378576,3.2078,4316.5,4316.1,0.2157]
[1756847378775,3.2078,4316.5,4316.2,0.2157]
[1756847378977,3.2078,4316.5,4316.4,0.2157]
[1756847379280,3.2078,4316.5,4316.4,0.5389]
[1756847380279,3.2078,4316.5,4316.4,0.7605]
[1756847380586,3.2078,4317.0,4316.9,0.7605]
[1756847380785,3.2078,4317.0,4316.9,0.9995]
[1756847381579,3.2078,4317.5,4317.4,0.2212]
[1756847381778,3.2078,4317.5,4317.4,1.0421]
[1756847383180,0.9558,4318.0,4317.9,0.4535]
[1756847383181,4.1636,4318.0,4317.9,0.4535]
[1756847383487,4.1636,4318.0,4317.9,0.3496]
[1756847383687,4.1636,4318.0,4317.6,0.3496]
[1756847383884,4.1636,4318.0,4317.4,0.4602]
[1756847384182,4.1636,4318.0,4317.6,0.5708]
[1756847384389,4.1636,4318.0,4317.6,0.2212]
[1756847384688,4.1636,4318.0,4317.8,0.2212]
[1756847384985,4.1636,4318.0,4317.9,0.8031]
[1756847385486,4.1636,4318.0,4317.9,1.0421]
[1756847390293,0.9558,4318.0,4317.9,1.0421]
[1756847390590,4.1636,4318.0,4317.9,1.0421]
[1756847405099,4.1636,4318.0,4317.9,6.3771]
[1756847405319,3.2078,4319.1,4318.1,0.3496]
[1756847405500,3.2078,4319.1,4318.4,0.3496]
[1756847405702,3.2078,4319.1,4318.6,0.3496]
[1756847405897,3.2078,4319.1,4318.7,0.5876]
[1756847406107,3.43935,4319.1,4318.5,0.238]
[1756847406306,3.2078,4318.6,4318.5,0.238]
[1756847406599,3.2078,4318.6,4318.1,1.65027418]
[1756847406799,3.4458,4318.6,4317.5,0.238]
[1756847407109,3.2078,4318.0,4317.6,0.238]
[1756847409307,3.2078,4318.0,4317.6,0.5876]
[1756847411209,0.0307,4317.7,4317.6,2.23787418]
[1756847413200,0.0307,4317.7,4317.6,0.5876]
[1756847413509,3.2078,4318.0,4317.3,0.238]
[1756847413510,0.0234,4317.5,4317.3,0.238]
[1756847413711,3.2385,4317.4,4317.3,0.5789]
[1756847414807,3.2385,4317.4,4317.3,0.3409]
[1756847429018,3.2078,4319.0,4317.9,0.3409]
[1756847429218,3.6716,4319.0,4318.9,0.209]
[1756847429419,3.6716,4319.0,4318.9,0.7856]
[1756847432718,3.4363,4319.0,4318.9,0.7856]
[1756847436922,0.4638,4318.3,4318.2,0.3409]
[1756847437125,0.8137,4318.3,4318.2,0.5499]
[1756847437622,0.3499,4318.9,4318.3,0.3409]
[1756847438717,0.2285,4318.4,4318.3,0.5499]
[1756847438924,0.2285,4318.4,4318.3,0.7856]
[1756847439622,3.2078,4319.0,4318.4,0.3409]
[1756847439820,3.2078,4319.0,4318.1,0.237]
[1756847439821,3.2078,4319.0,4318.9,0.7856]
[1756847440022,3.4363,4319.0,4318.9,1.0236]
[1756847441426,0.2285,4319.0,4318.9,1.0236]
[1756847442830,0.3499,4319.4,4319.0,0.3233]
[1756847443023,0.8135,4319.4,4319.3,0.5436]
[1756847444731,0.4636,4319.4,4319.3,0.768]
[1756847460245,3.2078,4319.5,4319.4,0.768]
[1756847460547,0.237,4320.0,4319.9,0.5436]
[1756847460548,4.2541,4320.0,4319.9,0.5436]
[1756847460936,4.0171,4320.0,4319.9,0.5436]
[1756847467048,7.67628,4320.0,4319.1,5.335]
[1756847467247,0.8093,4319.2,4319.1,5.335]
[1756847467551,0.8093,4319.2,4318.5,0.3233]
[1756847467750,0.4636,4318.6,4318.5,0.5436]
[1756847468452,0.8093,4318.6,4318.5,0.5436]
[1756847468857,0.2316,4319.2,4319.1,0.768]
[1756847469047,3.2078,4319.3,4319.1,0.768]
[1756847469248,3.4394,4319.3,4319.2,0.768]
[1756847474951,0.2316,4319.3,4319.2,0.768]
[1756847477253,3.2078,4319.8,4319.3,0.3241]
[1756847477459,3.2078,4319.8,4319.7,0.4249]
[1756847477460,3.4234,4319.8,4319.7,0.4249]
[1756847477665,3.4234,4319.8,4319.7,0.749]
[1756847478355,3.9896,4319.8,4319.7,0.749]
[1756847478957,3.6458,4319.8,4319.7,0.749]
[1756847480157,0.438,4319.8,4319.7,0.749]
[1756847480370,3.2078,4320.3,4320.2,0.4249]
[1756847480654,3.2078,4320.3,4320.2,0.986]
[1756847481661,3.4234,4320.3,4320.2,0.986]
[1756847481855,3.6458,4320.3,4320.2,0.986]
[1756847484555,3.9896,4320.3,4320.2,0.986]
[1756847486960,3.9896,4321.0,4320.9,0.749]
[1756847487152,3.9896,4321.0,4320.9,0.986]
[1756847496763,0.3438,4320.9,4320.4,40.8]
[1756847496969,0.7818,4320.5,4320.4,40.8]
[1756847497165,0.438,4320.5,4320.3,0.5611]
[1756847497361,0.438,4320.0,4319.9,0.237]
[1756847497561,0.7818,4320.0,4319.9,0.5611]
[1756847497766,0.7818,4320.0,4319.9,41.037]
[1756847497966,0.7818,4320.0,4319.9,41.3611]
[1756847500975,0.7818,4320.0,4319.9,0.986]
[1756847501473,0.7818,4320.0,4319.9,41.786]
[1756847502574,0.438,4320.0,4319.9,41.786]
[1756847507580,3.4406,4320.4,4320.3,0.423]
[1756847507779,3.2078,4320.9,4320.3,0.66]
[1756847508084,3.2078,4320.9,4320.8,0.7633]
[1756847508284,3.2078,4320.9,4320.8,1.0003]
[1756847509983,3.4406,4320.9,4320.8,1.0003]
[1756847512187,0.2328,4320.9,4320.8,1.0003]
[1756847516983,0.3191,4321.3,4320.8,0.66]
[1756847517182,0.7751,4321.3,4321.2,0.423]
[1756847517382,0.7751,4321.3,4321.2,0.7633]
[1756847517586,3.4406,4321.9,4321.8,0.423]